fUST/lending_fUST_20241214
["ID","MTS","AMOUNT","RATE_DAILY","PERIOD"]
[345240603,1734108647060,-500.0,0.00027397,7]
[345240604,1734108647070,-228.34,0.000274,2]
[345240605,1734108647079,-300.0,0.000276,13]
[345240606,1734108647101,-500.0,0.00027671,7]
[345240607,1734108647111,-612.47,0.00027671,7]
[345240608,1734108647120,-500.0,0.00027671,7]
[345240609,1734108647129,-262.10372815,0.00027671,7]
[345240610,1734108647139,-500.0,0.00027671,7]
[345240611,1734108647148,-500.0,0.00027671,7]
[345240612,1734108647157,-500.0,0.00027671,7]
[345240613,1734108647167,-500.0,0.00027671,7]
[345240614,1734108647176,-500.0,0.00027671,7]
[345240615,1734108647185,-274.8,0.00027671,7]
[345240616,1734108647195,-500.0,0.00027671,7]
[345240617,1734108647205,-387.06651204,0.00027671,7]
[345240618,1734108647215,-500.0,0.00027671,7]
[345240619,1734108647225,-500.0,0.00027671,7]
[345240620,1734108647234,-627.57,0.00027671,7]
[345240621,1734108647244,-500.0,0.00027671,7]
[345240622,1734108647253,-500.0,0.00027671,7]
[345240623,1734108647262,-500.0,0.00027671,7]
[345240625,1734108647272,-500.0,0.00027671,7]
[345240627,1734108647282,-500.0,0.00027671,7]
[345240629,1734108647291,-899.5,0.00027671,7]
[345240631,1734108647301,-500.0,0.00027671,7]
[345240633,1734108647310,-500.0,0.00027671,7]
[345240635,1734108647320,-707.48,0.00027671,7]
[345240637,1734108647329,-2679.27,0.00027671,5]
[345240640,1734108647352,-500.0,0.00027671,7]
[345240642,1734108647361,-500.0,0.00027671,7]
[345240644,1734108647371,-500.0,0.00027671,7]
[345240646,1734108647381,-403.37727427,0.00027671,7]
[345240647,1734108647390,-7238.47022682,0.00027878,2]
[345240649,1734108647400,-190.58206739,0.00027944,7]
[345240651,1734108647413,-500.0,0.00027944,7]
[345240654,1734108647423,-500.0,0.00027944,7]
[345240656,1734108647433,-500.0,0.00027944,7]
[345240657,1734108647442,-500.0,0.00027944,7]
[345240660,1734108647453,-186.76,0.00027945,7]
[345240662,1734108647463,-500.0,0.00027945,7]
[345240664,1734108647472,-597.58525886,0.00027945,7]
[345240666,1734108647484,-500.0,0.00027945,7]
[345240668,1734108647495,-500.0,0.00027945,7]
[345240670,1734108647505,-500.0,0.00027945,7]
[345240672,1734108647517,-500.0,0.00027945,7]
[345240673,1734108647527,-500.0,0.00027945,7]
[345240674,1734108647536,-500.0,0.00027945,7]
[345240675,1734108647545,-500.0,0.00027945,7]
[345240676,1734108647554,-627.57,0.00027945,7]
[345240677,1734108647563,-500.0,0.00027945,7]
[345240678,1734108647571,-500.0,0.00027945,7]
[345240679,1734108647584,-500.0,0.00027945,7]
[345240680,1734108647600,-500.0,0.00027945,7]
[345240681,1734108647609,-500.0,0.00027945,7]
[345240682,1734108647618,-899.5,0.00027945,7]
[345240683,1734108647627,-500.0,0.00027945,7]
[345240684,1734108647635,-507.99075637,0.00027945,7]
[345240685,1734108647644,-707.48,0.00027945,7]
[345240686,1734108647653,-2679.27,0.00027945,5]
[345240687,1734108647662,-500.0,0.00027945,7]
[345240688,1734108647671,-500.0,0.00027945,7]
[345240689,1734108647680,-500.0,0.00027945,7]
[345240690,1734108647689,-6266.16253432,0.0002799,2]
[345240691,1734108647704,-24350.17301837,0.0002799,2]
[345240692,1734108647713,-781.0,0.00028,2]
[345240694,1734108647723,-343.68364041,0.000282,2]
[345240696,1734108647732,-514.78226557,0.00028218,2]
[345240698,1734108647741,-321.41137871,0.00028218,2]
[345240700,1734108647750,-500.0,0.00028218,2]
[345240702,1734108647759,-500.0,0.00028218,2]
[345240704,1734108647768,-500.0,0.00028218,2]
[345240706,1734108647778,-500.0,0.00028218,2]
[345240708,1734108647787,-500.0,0.00028218,2]
[345240710,1734108647796,-477.95487631,0.00028218,2]
[345240712,1734108647805,-500.0,0.00028218,7]
[345240714,1734108647815,-500.0,0.00028218,7]
[345240716,1734108647824,-58136.29280488,0.00028219,2]
[345240719,1734108647842,-4515.57622955,0.00028219,2]
[345240720,1734108647852,-846.88992784,0.00028219,2]
[345240722,1734108647862,-500.0,0.00028219,7]
[345240724,1734108647873,-500.0,0.00028219,7]
[345240726,1734108647881,-500.0,0.00028219,7]
[345240728,1734108647891,-500.0,0.00028219,7]
[345240730,1734108647900,-515.01590276,0.00028219,7]
[345240732,1734108647909,-500.0,0.00028219,7]
[345240734,1734108647919,-500.0,0.00028219,7]
[345240737,1734108647928,-500.0,0.00028219,7]
[345240739,1734108647938,-627.57,0.00028219,7]
[345240740,1734108647948,-500.0,0.00028219,7]
[345240742,1734108647958,-500.0,0.00028219,7]
[345240744,1734108647967,-500.0,0.00028219,7]
[345240745,1734108647976,-500.0,0.00028219,7]
[345240747,1734108647985,-500.0,0.00028219,7]
[345240749,1734108647995,-899.5,0.00028219,7]
[345240751,1734108648005,-500.0,0.00028219,7]
[345240753,1734108648014,-707.48,0.00028219,7]
[345240755,1734108648023,-2679.27,0.00028219,5]
[345240757,1734108648033,-500.0,0.00028219,7]
[345240759,1734108648042,-500.0,0.00028219,7]
[345240761,1734108648051,-500.0,0.00028219,7]
[345240763,1734108648060,-500.0,0.00028492,7]
[345240765,1734108648070,-500.0,0.00028493,7]
[345240767,1734108648080,-500.0,0.00028493,7]
[345240769,1734108648091,-500.0,0.00028493,7]
[345240771,1734108648101,-500.0,0.00028493,7]
[345240773,1734108648111,-500.0,0.00028493,7]
[345240775,1734108648120,-500.0,0.00028493,7]
[345240777,1734108648129,-627.57,0.00028493,7]
[345240779,1734108648139,-500.0,0.00028493,7]
[345240781,1734108648148,-500.0,0.00028493,7]
[345240783,1734108648158,-500.0,0.00028493,7]
[345240785,1734108648167,-500.0,0.00028493,7]
[345240787,1734108648176,-500.0,0.00028493,7]
[345240789,1734108648185,-899.5,0.00028493,7]
[345240791,1734108648194,-500.0,0.00028493,7]
[345240793,1734108648203,-707.48,0.00028493,7]
[345240795,1734108648212,-2679.27,0.00028493,5]
[345240797,1734108648222,-500.0,0.00028493,7]
[345240799,1734108648232,-500.0,0.00028493,7]
[345240801,1734108648241,-500.0,0.00028493,7]
[345240803,1734108648250,-197.44352167,0.00028499,2]
[345240805,1734108648259,-500.0,0.00028499,2]
[345240807,1734108648269,-259.07701358,0.00028499,2]
[345240808,1734108648278,-296.76749845,0.00028499,2]
[345240810,1734108648287,-22345.11823741,0.000285,2]
[345240812,1734108648297,-112238.47499833,0.000285,2]
[345240814,1734108648306,-178.279,0.00028604,2]
[345240816,1734108648315,-153.0,0.00028759,2]
[345240818,1734108648326,-153.0,0.00028759,2]
[345240820,1734108648338,-153.0,0.00028759,2]
[345240822,1734108648347,-153.0,0.00028759,2]
[345240824,1734108648357,-153.0,0.00028759,2]
[345240826,1734108648366,-153.0,0.00028759,2]
[345240828,1734108648376,-153.0,0.00028759,2]
[345240830,1734108648385,-153.0,0.00028759,2]
[345240832,1734108648395,-153.0,0.00028759,2]
[345240834,1734108648408,-153.0,0.00028759,2]
[345240836,1734108648417,-153.0,0.00028759,2]
[345240837,1734108648427,-153.0,0.00028759,2]
[345240838,1734108648436,-153.0,0.00028759,2]
[345240839,1734108648447,-153.0,0.00028759,2]
[345240840,1734108648456,-153.0,0.00028759,2]
[345240841,1734108648466,-153.0,0.00028759,2]
[345240842,1734108648475,-153.0,0.00028759,2]
[345240843,1734108648486,-153.0,0.00028759,2]
[345240844,1734108648495,-153.0,0.00028759,2]
[345240845,1734108648505,-153.0,0.00028759,2]
[345240846,1734108648514,-153.0,0.00028759,2]
[345240847,1734108648525,-153.0,0.00028759,2]
[345240848,1734108648535,-153.0,0.00028759,2]
[345240849,1734108648545,-153.0,0.00028759,2]
[345240850,1734108648555,-153.0,0.00028759,2]
[345240851,1734108648566,-153.0,0.00028759,2]
[345240852,1734108648576,-153.0,0.00028759,2]
[345240853,1734108648589,-153.0,0.00028759,2]
[345240854,1734108648599,-153.0,0.00028759,2]
[345240855,1734108648608,-153.0,0.00028759,2]
[345240856,1734108648618,-153.0,0.00028759,2]
[345240857,1734108648629,-635.72000082,0.00028766,7]
[345240858,1734108648639,-500.0,0.00028767,7]
[345240859,1734108648650,-500.0,0.00028767,7]
[345240860,1734108648660,-500.0,0.00028767,7]
[345240861,1734108648669,-500.0,0.00028767,7]
[345240862,1734108648679,-500.0,0.00028767,7]
[345240863,1734108648689,-500.0,0.00028767,7]
[345240864,1734108648698,-627.57,0.00028767,7]
[345240865,1734108648707,-500.0,0.00028767,7]
[345240866,1734108648717,-500.0,0.00028767,7]
[345240867,1734108648727,-230.96,0.00028767,7]
[345240868,1734108648736,-500.0,0.00028767,7]
[345240869,1734108648746,-500.0,0.00028767,7]
[345240870,1734108648756,-899.5,0.00028767,7]
[345240871,1734108648766,-500.0,0.00028767,7]
[345240872,1734108648776,-707.48,0.00028767,7]
[345240873,1734108648786,-379.58055389,0.00028767,5]
[345240874,1734108648802,-2299.68944611,0.00028767,5]
[345240875,1734108648812,-500.0,0.00028767,7]
[345240876,1734108648822,-500.0,0.00028767,7]
[345240877,1734108648832,-500.0,0.00028767,7]
[345240878,1734108648847,-348.743,0.0002878,2]
[345240879,1734108648858,-864.7452389,0.00029,2]
[345240880,1734108648868,-37405.44797556,0.00029,2]
[345240881,1734109243513,261.027226,0.00013973,2]
[345240884,1734109795049,-261.027226,0.00020447,2]
[345240885,1734109795073,-185.594808,0.00024507,2]
[345240886,1734109795094,-278.606512,0.00025834,2]
[345240887,1734109811955,-300.0,0.00026618,2]
[345240888,1734109811980,-300.0,0.00026618,2]
[345240889,1734109812011,-24900.0,0.00026619,2]
[345240890,1734109812051,-169.946305,0.00026724,2]
[345240891,1734109812091,-261.027226,0.00026921,2]
[345240923,1734109832700,-533.0,0.00027274,2]
[345240924,1734109832710,-2370.0,0.00027274,2]
[345240925,1734109832720,-2161.0,0.00027274,2]
[345240926,1734109832729,-2631.84771693,0.00027296,2]
[345240927,1734109832739,-500.0,0.00027397,7]
[345240928,1734109832753,-500.0,0.00027397,7]
[345240929,1734109832763,-530.61,0.00027397,7]
[345240930,1734109832773,-495.08033633,0.00027397,7]
[345240931,1734109832783,-500.0,0.00027397,7]
[345240932,1734109832795,-500.0,0.00027397,7]
[345240933,1734109832805,-635.79707351,0.00027397,5]
[345240934,1734109832818,-1373.66292649,0.00027397,5]
[345240935,1734109832829,-500.0,0.00027397,7]
[345240937,1734109832842,-500.0,0.00027397,7]
[345240939,1734109832852,-500.0,0.00027397,7]
[345240941,1734109832861,-500.0,0.00027397,7]
[345240943,1734109832871,-500.0,0.00027397,7]
[345240945,1734109832881,-500.0,0.00027397,7]
[345240947,1734109832891,-205.51,0.000274,2]
[345240949,1734109832901,-497.0,0.00027506,15]
[345240951,1734109832911,-500.0,0.00027671,7]
[345240953,1734109832921,-494.9,0.00027671,7]
[345240955,1734109832931,-530.61,0.00027671,7]
[345240958,1734109832941,-294.66,0.00027671,7]
[345240960,1734109832951,-500.0,0.00027671,7]
[345240962,1734109832961,-2009.46,0.00027671,5]
[345240964,1734109832971,-500.0,0.00027671,7]
[345240966,1734109832980,-500.0,0.00027671,7]
[345240968,1734109832990,-500.0,0.00027671,7]
[345240970,1734109833000,-500.0,0.00027671,7]
[345240972,1734109833010,-500.0,0.00027671,7]
[345240974,1734109833020,-500.0,0.00027671,7]
[345240976,1734109833030,-500.0,0.00027944,7]
[345240978,1734109833040,-500.0,0.00027944,7]
[345240980,1734109833050,-500.0,0.00027944,7]
[345240982,1734109833060,-500.0,0.00027945,7]
[345240985,1734109833071,-530.61,0.00027945,7]
[345240987,1734109833081,-500.0,0.00027945,7]
[345240989,1734109833093,-2009.46,0.00027945,5]
[345240990,1734109833103,-498.127872,0.00027945,7]
[345240992,1734109833114,-500.0,0.00027945,7]
[345240994,1734109833124,-500.0,0.00027945,7]
[345240995,1734109833134,-500.0,0.00027945,7]
[345240996,1734109833145,-500.0,0.00027945,7]
[345240997,1734109833156,-500.0,0.00027945,7]
[345240999,1734109833166,-500.0,0.00028218,7]
[345241000,1734109833176,-500.0,0.00028218,7]
[345241002,1734109833187,-289.31047149,0.00028218,7]
[345241004,1734109833197,-674.62,0.00028218,7]
[345241005,1734109833208,-500.0,0.00028219,7]
[345241006,1734109833218,-530.61,0.00028219,7]
[345241007,1734109833229,-500.0,0.00028219,7]
[345241008,1734109833240,-2009.46,0.00028219,5]
[345241009,1734109833407,-500.0,0.00028219,7]
[345241010,1734109833420,-500.0,0.00028219,7]
[345241011,1734109833430,-500.0,0.00028219,7]
[345241012,1734109833439,-500.0,0.00028219,7]
[345241013,1734109833449,-500.0,0.00028219,7]
[345241014,1734109833458,-500.0,0.00028492,7]
[345241015,1734109833468,-500.0,0.00028492,7]
[345241016,1734109833478,-674.62,0.00028492,7]
[345241017,1734109833487,-500.0,0.00028493,7]
[345241018,1734109833496,-530.61,0.00028493,7]
[345241019,1734109833506,-289.36817979,0.00028493,7]
[345241020,1734109833516,-2009.46,0.00028493,5]
[345241021,1734109833526,-500.0,0.00028493,7]
[345241022,1734109833536,-500.0,0.00028493,7]
[345241023,1734109833545,-500.0,0.00028493,7]
[345241024,1734109833554,-500.0,0.00028493,7]
[345241025,1734109833564,-500.0,0.00028493,7]
[345241026,1734109833573,-334.003,0.0002874,2]
[345241027,1734109833583,-153.0,0.00028762,2]
[345241028,1734109833594,-153.0,0.00028762,2]
[345241029,1734109833604,-153.0,0.00028762,2]
[345241030,1734109833614,-153.0,0.00028762,2]
[345241031,1734109833624,-153.0,0.00028762,2]
[345241032,1734109833633,-153.0,0.00028762,2]
[345241033,1734109833643,-153.0,0.00028762,2]
[345241034,1734109833653,-153.0,0.00028762,2]
[345241035,1734109833663,-153.0,0.00028762,2]
[345241036,1734109833672,-153.0,0.00028762,2]
[345241037,1734109833682,-500.0,0.00028766,7]
[345241038,1734109833691,-500.0,0.00028766,7]
[345241039,1734109833702,-674.62,0.00028766,7]
[345241040,1734109833711,-500.0,0.00028767,7]
[345241041,1734109833721,-530.61,0.00028767,7]
[345241042,1734109833730,-2009.46,0.00028767,5]
[345241043,1734109833740,-500.0,0.00028767,7]
[345241044,1734109833755,-500.0,0.00028767,7]
[345241045,1734109833765,-500.0,0.00028767,7]
[345241046,1734109833774,-500.0,0.00028767,7]
[345241047,1734109833784,-500.0,0.00028767,7]
[345241048,1734109833794,-2003.2063408,0.00028785,2]
[345241049,1734109833804,-420.0,0.00028788,2]
[345241050,1734109833814,-150.786,0.00028877,2]
[345241051,1734109833825,-322.07425511,0.00028982,2]
[345241052,1734109833837,-500.0,0.00028999,2]
[345241053,1734109833847,-181.3539095,0.00028999,2]
[345241054,1734109833856,-192.49718737,0.00028999,2]
[345241055,1734109833866,-500.0,0.00028999,2]
[345241056,1734109833875,-500.0,0.00028999,2]
[345241057,1734109833885,-500.0,0.00028999,2]
[345241058,1734109833894,-328.82349001,0.00028999,2]
[345241059,1734109833903,-330.88387515,0.00028999,2]
[345241060,1734109833913,-21852.51183311,0.00029,2]
[345241081,1734109838654,-1244.53,0.00027506,15]
[345241082,1734109838664,-160.30200662,0.00029,2]
[345241083,1734109838676,-9313.12067749,0.00029,2]
[345241084,1734109838686,-401.45288572,0.00029,2]
[345241085,1734109838715,-21.9920782,0.00029,2]
[345241086,1734109838725,-10519.70431068,0.00029,2]
[345241087,1734109838735,-2861.56520475,0.00029,2]
[345241088,1734109838746,-4326.02264888,0.00029,2]
[345241100,1734109840809,-819.32607797,0.00029,2]
[345241118,1734109844016,-1058.0,0.00027506,15]
[345241119,1734109844025,-5032.49129135,0.00029,2]
[345242338,1734110375811,2204.8731746,0.00027,2]
[345242340,1734110514307,240.6821,0.00013973,2]
[345242341,1734110514566,240.6821,0.00020447,2]
[345242342,1734110514809,240.6821,0.00026921,2]
[345242343,1734110582267,378.82926147,0.00026901,2]
[345242345,1734110723143,2201.0,0.00027,2]
[345242349,1734110876920,0.04918693,0.00027,2]
[345242352,1734110897696,9278.97784469,0.000125,2]
[345242403,1734111032030,-1085.907,0.0002061,2]
[345242438,1734111037855,-921.33715993,0.0002061,2]
[345242445,1734111037930,-2611.5831981,0.0002061,2]
[345242446,1734111037940,-300.0,0.00022009,2]
[345242448,1734111037949,-1497.52344731,0.0002201,16]
[345242458,1734111040127,-1943.0977592,0.0002201,16]
[345242459,1734111040140,-2503.54910494,0.0002201,16]
[345242460,1734111040149,-423.88205031,0.00024,7]
[345242461,1734111040159,-420.0,0.0002421,2]
[345242462,1734111040169,-496.5966922,0.00025,2]
[345242463,1734111040181,-193.90975298,0.00025,2]
[345242503,1734111043078,-505.3031674,0.00025,2]
[345242552,1734111045880,-346.68150963,0.00025,2]
[345242554,1734111045890,-1411.2297382,0.00026,30]
[345242556,1734111045903,-1221.46378381,0.00026,30]
[345242742,1734111979882,221.571444,0.00013973,2]
[345242822,1734112232095,-221.571444,0.00020447,2]
[345242824,1734112232104,-215.9,0.00025204,14]
[345242826,1734112232114,-307.406385,0.00025356,2]
[345242828,1734112232123,-195.87807108,0.000259,2]
[345242831,1734112232133,-385.583443,0.00025952,14]
[345242832,1734112232142,-204.8079224,0.00025952,2]
[345242835,1734112232151,-178.168,0.00025999,12]
[345242837,1734112232161,-300.0,0.00025999,2]
[345242839,1734112232171,-300.0,0.00025999,2]
[345242841,1734112232180,-41107.13850813,0.00026,2]
[345242843,1734112232192,-857.941469,0.00026,2]
[345243076,1734112235516,-6946.79897069,0.00026,2]
[345243077,1734112235530,-1781.13244186,0.00026,2]
[345243078,1734112235539,-564.12468624,0.00026,2]
[345243079,1734112235549,-39480.95418442,0.00026,30]
[345243152,1734112246262,-2193.86160251,0.00026,30]
[345243153,1734112246272,-8682.45103349,0.00026,4]
[345243154,1734112246282,-2874.59544856,0.00026,30]
[345243155,1734112246297,-1643.56877997,0.00026,30]
[345243159,1734112533226,3049.99999903,0.0002,30]
[345243162,1734112874911,215.98085,0.00013973,2]
[345243163,1734113170570,4839.35,0.000256,60]
[345243191,1734113432308,-2631.84771693,0.00020347,2]
[345243192,1734113432319,-215.98085,0.00020447,2]
[345243193,1734113432328,-300.0,0.00021999,2]
[345243194,1734113432338,-300.0,0.00021999,2]
[345243195,1734113432347,-1316.28854208,0.00022,2]
[345243196,1734113432357,-95.07455765,0.00022,2]
[345243197,1734113432411,-404.92544235,0.00022,2]
[345243198,1734113432420,-500.0,0.00022,2]
[345243199,1734113432430,-500.0,0.00022,2]
[345243200,1734113432439,-500.0,0.00022,2]
[345243201,1734113432448,-500.0,0.00022,2]
[345243202,1734113432458,-500.0,0.00022,2]
[345243203,1734113432470,-500.0,0.00022,2]
[345243204,1734113432479,-192.8758648,0.00022,2]
[345243205,1734113432488,-253.0,0.00022,2]
[345243206,1734113432497,-253.0,0.00022192,2]
[345243207,1734113432506,-3220.7072006,0.00022844,11]
[345243208,1734113432515,-253.0,0.00023014,2]
[345243209,1734113432526,-172.534725,0.00023288,2]
[345243210,1734113432535,-965.6323089,0.00023427,2]
[345243211,1734113432544,-175.213978,0.00023516,2]
[345243212,1734113432554,-420.0,0.00023906,2]
[345243213,1734113432563,-257.0,0.00024164,2]
[345243214,1734113432573,-420.0,0.00024199,2]
[345243215,1734113432582,-172.534725,0.00024437,2]
[345243216,1734113432592,-10205.22545268,0.00024744,2]
[345243217,1734113432602,-183.65,0.00024999,8]
[345243218,1734113432611,-24900.0,0.00024999,2]
[345243219,1734113432621,-307.4063856,0.00024999,2]
[345243220,1734113432631,-10205.22545268,0.00025157,2]
[345243221,1734113432641,-10205.22545268,0.00025261,2]
[345243222,1734113432651,-151.0,0.00025494,7]
[345243223,1734113432660,-169.368648,0.00025494,7]
[345243224,1734113432670,-167.808755,0.00025494,7]
[345243225,1734113432679,-151.0,0.00025494,7]
[345243226,1734113432689,-151.0,0.00025494,7]
[345243227,1734113432699,-151.0,0.00025494,7]
[345243228,1734113432708,-151.0,0.00025494,7]
[345243229,1734113432718,-151.0,0.00025494,7]
[345243230,1734113432727,-172.534725,0.00025585,2]
[345243231,1734113432736,-10205.22545271,0.00025611,2]
[345243232,1734113432746,-151.0,0.0002567,7]
[345243233,1734113432755,-151.0,0.0002567,7]
[345243234,1734113432765,-177.857792,0.00025719,7]
[345243235,1734113432774,-151.0,0.00025719,7]
[345243236,1734113432784,-151.0,0.00025719,7]
[345243237,1734113432793,-151.0,0.00025719,7]
[345243238,1734113432803,-154.043704,0.00025724,7]
[345243239,1734113432812,-151.0,0.00025724,7]
[345243240,1734113432827,-151.0,0.00025724,7]
[345243241,1734113432836,-253.0,0.00025775,2]
[345243242,1734113432846,-587.0,0.00025977,2]
[345243243,1734113432855,-191.93,0.00026,2]
[345243244,1734113432866,-166.140385,0.00026,30]
[345243245,1734113432875,-151.0,0.00026,7]
[345243246,1734113432885,-587.0,0.00026619,2]
[345243247,1734113432895,-172.534725,0.00026734,2]
[345243248,1734113432905,-214.14972099,0.000269,2]
[345243249,1734113432915,-215.98085,0.00026921,2]
[345243250,1734113432925,-10039.50212638,0.00027,2]
[345243251,1734113432935,-11056.37203961,0.00027,6]
[345243252,1734113432944,-151.0,0.00027,7]
[345243253,1734113432954,-151.516839,0.00027,7]
[345243254,1734113432964,-151.0,0.00027,7]
[345243256,1734113432975,-261.151742,0.00027,7]
[345243258,1734113432984,-151.0,0.00027,7]
[345243260,1734113432994,-151.0,0.00027,7]
[345243262,1734113433004,-151.0,0.00027,7]
[345243263,1734113433013,-151.0,0.00027,7]
[345243265,1734113433023,-151.0,0.00027,7]
[345243267,1734113433032,-151.0,0.00027,7]
[345243269,1734113433042,-151.0,0.00027,7]
[345243271,1734113433052,-151.0,0.00027,7]
[345243273,1734113433063,-151.0,0.00027,7]
[345243275,1734113433073,-151.0,0.00027,7]
[345243277,1734113433083,-151.0,0.00027,7]
[345243278,1734113433093,-151.0,0.00027,7]
[345243280,1734113433103,-151.0,0.00027,7]
[345243282,1734113433114,-151.0,0.00027,7]
[345243284,1734113433124,-236.67984616,0.00027,7]
[345243286,1734113433134,-151.000001,0.00027,7]
[345243288,1734113433144,-151.0,0.00027,7]
[345243290,1734113433154,-151.0,0.00027,7]
[345243292,1734113433164,-151.0,0.00027,7]
[345243294,1734113433174,-151.0,0.00027082,7]
[345243296,1734113433183,-963.0,0.000271,15]
[345243298,1734113433193,-151.0,0.00027118,7]
[345243300,1734113433202,-310.04328701,0.00027149,2]
[345243302,1734113433212,-579.63880349,0.00027192,2]
[345243304,1734113433222,-151.0,0.00027266,7]
[345243306,1734113433231,-162.93764753,0.00027273,2]
[345243308,1734113433241,-500.0,0.00027273,2]
[345243310,1734113433250,-501.11402369,0.00027273,2]
[345243312,1734113433260,-73918.01191986,0.0002729,2]
[345243314,1734113433269,-101139.89148862,0.0002729,2]
[345243316,1734113433279,-257.74620188,0.00027291,2]
[345243317,1734113433288,-502.1423405,0.00027291,2]
[345243319,1734113433298,-500.0,0.00027291,2]
[345243321,1734113433309,-432.46425719,0.00027291,2]
[345243324,1734113433319,-500.0,0.00027291,2]
[345243326,1734113433330,-500.0,0.00027291,2]
[345243328,1734113433339,-500.0,0.00027291,2]
[345243329,1734113433348,-500.0,0.00027291,2]
[345243332,1734113433358,-500.0,0.00027291,2]
[345243334,1734113433367,-500.0,0.00027291,2]
[345243336,1734113433377,-500.0,0.00027291,2]
[345243338,1734113433388,-500.0,0.00027291,2]
[345243340,1734113433403,-617.23435015,0.00027291,2]
[345243342,1734113433414,-500.0,0.00027291,2]
[345243343,1734113433424,-500.0,0.00027291,2]
[345243345,1734113433434,-500.0,0.00027291,2]
[345243347,1734113433444,-151.0,0.00027292,7]
[345243349,1734113433455,-179.766862,0.00027292,7]
[345243351,1734113433466,-151.0,0.00027293,7]
[345243353,1734113433478,-151.0,0.00027293,7]
[345243356,1734113433488,-151.0,0.00027294,7]
[345243358,1734113433498,-151.0,0.00027294,7]
[345243359,1734113433508,-151.0,0.00027294,7]
[345243361,1734113433517,-218.769435,0.00027294,7]
[345243363,1734113433527,-151.0,0.00027294,7]
[345243366,1734113433536,-151.0,0.00027294,7]
[345243367,1734113433546,-2370.0,0.00027295,2]
[345243369,1734113433556,-2161.0,0.00027295,2]
[345243371,1734113433565,-1000.0,0.000273,2]
[345243373,1734113433574,-501.33972693,0.00027349,2]
[345243375,1734113433584,-151.0,0.00027371,7]
[345243377,1734113433594,-151.0,0.00027371,7]
[345243379,1734113433603,-253.0,0.00027386,2]
[345243381,1734113433614,-151.0,0.00027395,7]
[345243383,1734113433623,-545.6463455,0.00027397,7]
[345243385,1734113433633,-500.0,0.00027397,7]
[345243387,1734113433643,-501.40083746,0.00027397,7]
[345243389,1734113433652,-500.0,0.00027397,7]
[345243391,1734113433662,-500.0,0.00027397,7]
[345243393,1734113433672,-500.0,0.00027397,7]
[345243395,1734113433681,-500.0,0.00027397,7]
[345243397,1734113433691,-500.0,0.00027397,7]
[345243399,1734113433702,-502.4422829,0.00027397,7]
[345243401,1734113433712,-556.49,0.00027397,7]
[345243403,1734113433726,-500.0,0.00027397,7]
[345243405,1734113433735,-500.0,0.00027397,7]
[345243407,1734113433745,-500.0,0.00027397,7]
[345243409,1734113433754,-500.0,0.00027397,7]
[345243411,1734113433764,-500.0,0.00027397,7]
[345243413,1734113433773,-500.0,0.00027397,7]
[345243415,1734113433783,-500.0,0.00027397,7]
[345243417,1734113433793,-500.0,0.00027397,7]